[Event "Chinese Championship-B Women 2024"]
[Site "Liaocheng"]
[Date "2024.04.24"]
[Round "5.15"]
[White "Shi Shuhua"]
[Black "Li, Peishan"]
[Result "0-1"]
[WhiteElo "1840"]
[BlackElo "1647"]
[PlyCount "136"]
[EventDate "2024.04.24"]
[EventType "swiss"]
[EventCountry "CHN"]
[TimeControl "5400+30"]

1. d4 {[%emt 0:00:12]} Nf6 {[%emt 0:00:07]} 2. c4 {[%emt 0:00:12]} e6 {[%emt 0:00:05]} 3. g3 {[%emt 0:00:27]} d5 {[%emt 0:00:33]} 4. Bg2 {[%emt 0:00:10]} b6 {[%emt 0:00:28]} 5. cxd5 {[%emt 0:01:36]} exd5 {[%emt 0:00:12]} 6. Nf3 {[%emt 0:00:19]} Bb7 {[%emt 0:00:24]} 7. O-O {[%emt 0:00:19]} Be7 {[%emt 0:00:15]} 8. Nc3 {[%emt 0:02:36]} O-O {[%emt 0:00:34]} 9. Bf4 {[%emt 0:00:40]} Nbd7 {[%emt 0:03:27]} 10. Nb5 {[%emt 0:07:21]} c5 {[%emt 0:00:34]} 11. Rc1 {[%emt 0:09:01]} Ne4 {[%emt 0:03:31]} 12. dxc5 {[%emt 0:02:06]} Ndxc5 {[%emt 0:01:09]} 13. b4 {[%emt 0:09:40]} Ne6 {[%emt 0:01:09]} 14. Nc7 {[%emt 0:02:32]} Nxf4 {[%emt 0:01:51]} 15. Nxa8 {[%emt 0:00:10]} Ne6 {[%emt 0:00:16]} 16. Nxb6 {[%emt 0:02:11]} Qxb6 {[%emt 0:01:50]} 17. a3 {[%emt 0:00:05]} Bf6 {[%emt 0:01:35]} 18. Qd3 {[%emt 0:06:21]} Rd8 {[%emt 0:01:31]} 19. Rc2 {[%emt 0:04:46]} Ba6 {[%emt 0:01:09]} 20. Qb3 {[%emt 0:02:20]} Bc4 {[%emt 0:04:49]} 21. Rxc4 {[%emt 0:00:10]} dxc4 {[%emt 0:00:05]} 22. Qxc4 {[%emt 0:00:03]} Nd6 {[%emt 0:05:58]} 23. Qa2 {[%emt 0:03:54]} Nb5 {[%emt 0:01:01]} 24. e4 {[%emt 0:03:56]} Nc3 {[%emt 0:03:36]} 25. Qc4 {[%emt 0:02:20]} Qb5 {[%emt 0:02:05]} 26. Qxb5 {[%emt 0:01:34]} Nxb5 {[%emt 0:00:04]} 27. e5 {[%emt 0:02:05]} Be7 {[%emt 0:00:04]} 28. Ra1 {[%emt 0:00:09]} Nc3 {[%emt 0:00:57]} 29. h3 {[%emt 0:03:47]} Kf8 {[%emt 0:02:33]} 30. Bf1 {[%emt 0:01:24]} Rd1 {[%emt 0:02:02]} 31. Rxd1 {[%emt 0:00:06]} Nxd1 {[%emt 0:00:01]} 32. Nd2 {[%emt 0:01:10]} Nd4 {[%emt 0:02:41]} 33. f4 {[%emt 0:00:37]} Nb2 {[%emt 0:08:18]} 34. Kf2 {[%emt 0:02:06]} g5 {[%emt 0:01:52]} 35. Nb1 {[%emt 0:00:40]} gxf4 {[%emt 0:00:20]} 36. gxf4 {[%emt 0:00:06]} Bh4+ {[%emt 0:04:14]} 37. Ke3 {[%emt 0:00:47]} Nf5+ {[%emt 0:00:14]} 38. Kf3 {[%emt 0:00:56]} Bd8 {[%emt 0:05:23]} 39. Ba6 {[%emt 0:01:35]} Bb6 {[%emt 0:02:37]} 40. Ke4 {[%emt 0:01:14]} Ne3 {[%emt 0:02:26]} 41. Nc3 {[%emt 0:02:07]} Nbd1 {[%emt 0:02:58]} 42. Nxd1 {[%emt 0:01:46]} Nxd1 {[%emt 0:00:03]} 43. h4 {[%emt 0:01:44]} Ne3 {[%emt 0:03:51]} 44. Bd3 {[%emt 0:01:04]} h6 {[%emt 0:04:15]} 45. a4 {[%emt 0:00:21]} Nd1 {[%emt 0:00:41]} 46. Bc2 {[%emt 0:01:16]} Nc3+ {[%emt 0:00:13]} 47. Kf3 {[%emt 0:00:24]} Nd5 {[%emt 0:01:00]} 48. b5 {[%emt 0:00:08]} Bd8 {[%emt 0:04:12]} 49. h5 {[%emt 0:00:40]} Nc3 {[%emt 0:04:08]} 50. Ke3 {[%emt 0:01:24]} Bb6+ {[%emt 0:01:29]} 51. Kf3 {[%emt 0:00:24]} f6 {[%emt 0:03:34]} 52. e6 {[%emt 0:00:55]} Ke7 {[%emt 0:00:07]} 53. f5 {[%emt 0:00:06]} Kd6 {[%emt 0:00:06]} 54. Bb3 {[%emt 0:01:45]} Bc5 {[%emt 0:00:56]} 55. Bc2 {[%emt 0:03:17]} Ke5 {[%emt 0:00:26]} 56. Kg4 {[%emt 0:00:53]} Kd4 {[%emt 0:01:43]} 57. Bb3 {[%emt 0:00:23]} Kd3 {[%emt 0:01:58]} 58. Kf3 {[%emt 0:01:07]} Kd2 {[%emt 0:01:27]} 59. Kf4 {[%emt 0:03:16]} Kc1 {[%emt 0:00:49]} 60. e7 {[%emt 0:01:24]} Bxe7 {[%emt 0:00:06]} 61. Ke3 {[%emt 0:00:06]} Kb2 {[%emt 0:00:15]} 62. Bc4 {[%emt 0:15:17]} Bc5+ {[%emt 0:00:23]} 63. Kd3 {[%emt 0:00:00]} Nxa4 {[%emt 0:00:07]} 64. Bf7 {[%emt 0:00:00]} Nb6 {[%emt 0:00:07]} 65. Ke4 {[%emt 0:00:00]} Kc3 {[%emt 0:00:07]} 66. Be8 {[%emt 0:00:00]} Kc4 {[%emt 0:00:07]} 67. Kf3 {[%emt 0:00:00]} Kd3 {[%emt 0:00:20]} 68. Bf7 {[%emt 0:00:00]} Nc8 {[%emt 0:00:29]} 0-1

[Event "Chinese Championship-B Women 2024"]
[Site "Liaocheng"]
[Date "2024.04.24"]
[Round "6.1"]
[White "Wang, Chuqiao"]
[Black "Wang, Xiaoyan"]
[Result "1-0"]
[WhiteElo "2302"]
[BlackElo "1932"]
[PlyCount "145"]
[EventDate "2024.04.24"]
[EventType "swiss"]
[EventCountry "CHN"]
[TimeControl "5400+30"]

1. d4 {[%emt 0:00:04]} Nf6 {[%emt 0:00:06]} 2. c4 {[%emt 0:00:06]} g6 {[%emt 0:00:02]} 3. g3 {[%emt 0:00:12]} Bg7 {[%emt 0:00:12]} 4. Bg2 {[%emt 0:00:06]} d6 {[%emt 0:00:32]} 5. Nf3 {[%emt 0:00:10]} O-O {[%emt 0:00:18]} 6. O-O {[%emt 0:00:16]} Nc6 {[%emt 0:01:44]} 7. Nc3 {[%emt 0:00:18]} a6 {[%emt 0:00:21]} 8. Bf4 {[%emt 0:01:07]} Rb8 {[%emt 0:07:55]} 9. Rc1 {[%emt 0:00:31]} Nh5 {[%emt 0:03:01]} 10. Be3 {[%emt 0:03:18]} e5 {[%emt 0:00:53]} 11. b3 {[%emt 0:07:21]} Re8 {[%emt 0:11:27]} 12. dxe5 {[%emt 0:01:12]} Nxe5 {[%emt 0:00:56]} 13. Nxe5 {[%emt 0:01:11]} Bxe5 {[%emt 0:01:11]} 14. Ba7 {[%emt 0:01:18]} Ra8 {[%emt 0:00:41]} 15. Bd4 {[%emt 0:00:06]} c6 {[%emt 0:05:45]} 16. Bxe5 {[%emt 0:01:10]} dxe5 {[%emt 0:00:09]} 17. Qxd8 {[%emt 0:01:45]} Rxd8 {[%emt 0:00:07]} 18. Rfd1 {[%emt 0:00:07]} Be6 {[%emt 0:10:53]} 19. Na4 {[%emt 0:01:05]} Rxd1+ {[%emt 0:02:25]} 20. Rxd1 {[%emt 0:00:05]} Rb8 {[%emt 0:07:09]} 21. Nc5 {[%emt 0:01:43]} Nf6 {[%emt 0:00:43]} 22. Rd6 {[%emt 0:02:26]} Ne8 {[%emt 0:00:26]} 23. Rd3 {[%emt 0:00:04]} Nc7 {[%emt 0:04:51]} 24. h4 {[%emt 0:10:03]} Kf8 {[%emt 0:01:56]} 25. Re3 {[%emt 0:03:21]} b6 {[%emt 0:12:36]} 26. Nxe6+ {[%emt 0:01:55]} Nxe6 {[%emt 0:00:03]} 27. Bxc6 {[%emt 0:00:43]} Nd4 {[%emt 0:00:33]} 28. Bd5 {[%emt 0:00:36]} f6 {[%emt 0:00:21]} 29. Kf1 {[%emt 0:00:39]} a5 {[%emt 0:00:27]} 30. Rc3 {[%emt 0:00:42]} Rc8 {[%emt 0:00:53]} 31. e3 {[%emt 0:01:54]} Nb5 {[%emt 0:01:16]} 32. Rd3 {[%emt 0:00:07]} Nd6 {[%emt 0:00:16]} 33. Ke2 {[%emt 0:02:09]} Ke7 {[%emt 0:00:06]} 34. Rd1 {[%emt 0:01:00]} Rc5 {[%emt 0:01:15]} 35. a3 {[%emt 0:00:48]} Rc7 {[%emt 0:00:39]} 36. Rc1 {[%emt 0:01:49]} f5 {[%emt 0:01:59]} 37. f3 {[%emt 0:01:13]} Ne8 {[%emt 0:02:08]} 38. e4 {[%emt 0:03:06]} Nf6 {[%emt 0:00:15]} 39. Rb1 {[%emt 0:03:19]} Kd6 {[%emt 0:00:27]} 40. Kd3 {[%emt 0:02:08]} Nh5 {[%emt 0:02:34]} 41. Rg1 {[%emt 0:00:27]} Rd7 {[%emt 0:01:06]} 42. Kc3 {[%emt 0:00:42]} Ra7 {[%emt 0:01:56]} 43. Kd2 {[%emt 0:02:58]} f4 {[%emt 0:00:27]} 44. g4 {[%emt 0:00:14]} Ng3 {[%emt 0:00:03]} 45. Rd1 {[%emt 0:01:53]} g5 {[%emt 0:05:06]} 46. h5 {[%emt 0:01:10]} Kc5 {[%emt 0:01:00]} 47. Ke1 {[%emt 0:00:58]} Rd7 {[%emt 0:00:30]} 48. h6 {[%emt 0:09:05]} Rd6 {[%emt 0:00:29]} 49. Bb7 {[%emt 0:00:07]} Rxd1+ 50. Kxd1 {[%emt 0:00:01]} Kd4 {[%emt 0:01:44]} 51. Kd2 {[%emt 0:00:04]} Nf1+ {[%emt 0:00:32]} 52. Ke2 {[%emt 0:00:54]} Ne3 {[%emt 0:06:15]} 53. Bd5 {[%emt 0:00:23]} Kc3 {[%emt 0:00:36]} 54. Bg8 {[%emt 0:03:54]} Nc2 {[%emt 0:00:04]} 55. Bxh7 {[%emt 0:00:09]} Nd4+ {[%emt 0:00:03]} 56. Kd1 {[%emt 0:00:27]} Ne6 {[%emt 0:00:17]} 57. Bg8 {[%emt 0:00:29]} Nf8 {[%emt 0:00:08]} 58. Ke2 {[%emt 0:01:18]} Ng6 {[%emt 0:00:29]} 59. h7 {[%emt 0:00:07]} Nh8 {[%emt 0:00:24]} 60. Kd1 {[%emt 0:02:57]} Ng6 {[%emt 0:00:18]} 61. Kc1 {[%emt 0:00:23]} Nh8 {[%emt 0:00:46]} 62. Kb1 {[%emt 0:00:12]} Ng6 {[%emt 0:00:48]} 63. Ka2 {[%emt 0:00:09]} Nh8 {[%emt 0:00:12]} 64. Be6 {[%emt 0:00:28]} Ng6 {[%emt 0:02:38]} 65. Bf7 {[%emt 0:00:05]} Nh8 {[%emt 0:00:05]} 66. Be8 {[%emt 0:00:20]} Kd4 {[%emt 0:03:11]} 67. Kb2 {[%emt 0:00:33]} Ke3 {[%emt 0:01:08]} 68. b4 {[%emt 0:00:03]} Kxf3 {[%emt 0:00:12]} 69. c5 {[%emt 0:00:03]} bxc5 {[%emt 0:02:04]} 70. bxc5 {[%emt 0:00:05]} Kxe4 {[%emt 0:00:19]} 71. c6 {[%emt 0:00:02]} f3 {[%emt 0:00:12]} 72. c7 {[%emt 0:00:01]} f2 {[%emt 0:00:11]} 73. Bb5 {[%emt 0:00:02]} 1-0

[Event "Chinese Championship-B Women 2024"]
[Site "Liaocheng"]
[Date "2024.04.24"]
[Round "6.2"]
[White "Yang, Yijing"]
[Black "Xue, Shixuan"]
[Result "1/2-1/2"]
[WhiteElo "2040"]
[BlackElo "1790"]
[PlyCount "134"]
[EventDate "2024.04.24"]
[EventType "swiss"]
[EventCountry "CHN"]
[TimeControl "5400+30"]

1. d4 {[%emt 0:00:03]} Nf6 {[%emt 0:00:18]} 2. c4 {[%emt 0:00:06]} e6 {[%emt 0:00:14]} 3. Nf3 {[%emt 0:00:06]} b6 {[%emt 0:00:13]} 4. g3 {[%emt 0:00:11]} Bb7 {[%emt 0:00:23]} 5. Bg2 {[%emt 0:00:07]} Bb4+ {[%emt 0:01:12]} 6. Bd2 {[%emt 0:00:10]} Bxd2+ {[%emt 0:00:48]} 7. Qxd2 {[%emt 0:00:05]} O-O {[%emt 0:04:52]} 8. O-O {[%emt 0:00:24]} d6 {[%emt 0:00:28]} 9. Nc3 {[%emt 0:04:13]} Nbd7 {[%emt 0:01:36]} 10. Rad1 {[%emt 0:05:13]} Ne4 {[%emt 0:04:06]} 11. Qc2 {[%emt 0:00:48]} f5 {[%emt 0:04:14]} 12. d5 {[%emt 0:15:02]} Nxc3 {[%emt 0:02:12]} 13. Qxc3 {[%emt 0:00:08]} e5 {[%emt 0:00:20]} 14. Nd2 {[%emt 0:05:31]} a5 {[%emt 0:09:38]} 15. f4 {[%emt 0:02:01]} Qe7 {[%emt 0:04:34]} 16. e4 {[%emt 0:06:30]} fxe4 17. Nxe4 {[%emt 0:04:15]} exf4 {[%emt 0:16:17]} 18. gxf4 {[%emt 0:00:10]} h6 {[%emt 0:00:14]} 19. Rde1 {[%emt 0:03:47]} Qh4 {[%emt 0:02:47]} 20. Qg3 {[%emt 0:01:48]} Qxg3 {[%emt 0:00:40]} 21. hxg3 {[%emt 0:00:11]} Ba6 {[%emt 0:00:25]} 22. Bh3 {[%emt 0:04:06]} Rad8 {[%emt 0:03:28]} 23. b3 {[%emt 0:04:50]} a4 {[%emt 0:08:57]} 24. Be6+ {[%emt 0:01:29]} Kh7 {[%emt 0:00:37]} 25. g4 {[%emt 0:01:56]} b5 {[%emt 0:06:45]} 26. Bxd7 {[%emt 0:11:03]} Rxd7 {[%emt 0:00:04]} 27. c5 {[%emt 0:00:06]} dxc5 {[%emt 0:08:37]} 28. Nxc5 {[%emt 0:00:06]} Rd6 {[%emt 0:00:27]} 29. Re6 {[%emt 0:16:03]} Bc8 {[%emt 0:01:33]} 30. Rxd6 {[%emt 0:00:05]} cxd6 {[%emt 0:00:04]} 31. Ne6 {[%emt 0:00:06]} Rf6 {[%emt 0:00:41]} 32. f5 {[%emt 0:00:39]} Bb7 {[%emt 0:02:11]} 33. Nf4 {[%emt 0:03:16]} axb3 {[%emt 0:00:17]} 34. axb3 {[%emt 0:00:01]} Rf8 {[%emt 0:00:28]} 35. Re1 {[%emt 0:00:40]} Rf7 {[%emt 0:06:37]} 36. Re8 {[%emt 0:00:37]} h5 {[%emt 0:00:06]} 37. Ne6 {[%emt 0:02:56]} Bxd5 {[%emt 0:00:27]} 38. Ng5+ {[%emt 0:03:48]} Kh6 {[%emt 0:00:04]} 39. Nxf7+ {[%emt 0:00:05]} Bxf7 {[%emt 0:00:02]} 40. Rd8 {[%emt 0:04:59]} hxg4 {[%emt 0:00:54]} 41. Rxd6+ {[%emt 0:00:12]} Kg5 {[%emt 0:00:04]} 42. b4 {[%emt 0:01:19]} Kxf5 {[%emt 0:00:28]} 43. Rd7 {[%emt 0:00:04]} Kf6 {[%emt 0:03:44]} 44. Kf2 {[%emt 0:01:08]} Bc4 {[%emt 0:00:40]} 45. Kg3 {[%emt 0:00:45]} Ke5 {[%emt 0:00:13]} 46. Rd8 {[%emt 0:01:20]} Be6 {[%emt 0:03:39]} 47. Rb8 {[%emt 0:00:40]} Bd7 {[%emt 0:00:25]} 48. Rg8 {[%emt 0:00:23]} Kf6 {[%emt 0:00:59]} 49. Kf4 {[%emt 0:00:04]} g6 {[%emt 0:03:04]} 50. Rf8+ {[%emt 0:01:18]} Ke7 {[%emt 0:00:55]} 51. Rg8 {[%emt 0:00:02]} Kd6 {[%emt 0:00:15]} 52. Rxg6+ {[%emt 0:00:37]} Kd5 {[%emt 0:00:28]} 53. Rg7 {[%emt 0:00:03]} Be6 {[%emt 0:00:31]} 54. Rc7 {[%emt 0:00:36]} Kd4 {[%emt 0:00:29]} 55. Rc1 {[%emt 0:00:15]} Kd3 {[%emt 0:00:37]} 56. Re1 {[%emt 0:01:19]} Bc4 {[%emt 0:04:09]} 57. Kxg4 {[%emt 0:00:40]} Kc3 {[%emt 0:00:00]} 58. Rb1 {[%emt 0:00:09]} Bb3 {[%emt 0:00:00]} 59. Kf4 {[%emt 0:00:18]} Kxb4 {[%emt 0:00:00]} 60. Ke3 {[%emt 0:00:05]} Kc3 {[%emt 0:00:00]} 61. Rc1+ {[%emt 0:00:07]} Bc2 {[%emt 0:00:29]} 62. Rg1 {[%emt 0:00:12]} b4 {[%emt 0:00:25]} 63. Rg7 {[%emt 0:00:12]} b3 {[%emt 0:00:45]} 64. Rc7+ {[%emt 0:00:06]} Kb2 {[%emt 0:02:21]} 65. Kd2 {[%emt 0:00:07]} Bb1 {[%emt 0:00:00]} 66. Rb7 {[%emt 0:00:28]} Bc2 {[%emt 0:00:00]} 67. Rxb3+ {[%emt 0:00:03]} Bxb3 {[%emt 0:00:00]} 1/2-1/2

[Event "Chinese Championship-B Women 2024"]
[Site "Liaocheng"]
[Date "2024.04.24"]
[Round "6.3"]
[White "Jiang, Tianyu"]
[Black "Sun, Jihan"]
[Result "1-0"]
[WhiteElo "1929"]
[BlackElo "1781"]
[PlyCount "111"]
[EventDate "2024.04.24"]
[EventType "swiss"]
[EventCountry "CHN"]
[TimeControl "5400+30"]

1. e4 {[%emt 0:00:05]} c5 {[%emt 0:06:27]} 2. Nf3 {[%emt 0:00:06]} Nc6 {[%emt 0:00:07]} 3. Bb5 {[%emt 0:00:22]} g6 {[%emt 0:00:07]} 4. Bxc6 {[%emt 0:01:09]} dxc6 {[%emt 0:00:08]} 5. d3 {[%emt 0:00:14]} Bg7 {[%emt 0:00:05]} 6. h3 {[%emt 0:00:59]} Nf6 {[%emt 0:01:07]} 7. Nc3 {[%emt 0:00:40]} Nd7 {[%emt 0:00:24]} 8. Be3 {[%emt 0:00:14]} e5 {[%emt 0:01:10]} 9. Qd2 {[%emt 0:00:50]} Qe7 {[%emt 0:00:48]} 10. Bh6 {[%emt 0:06:28]} f6 {[%emt 0:00:42]} 11. Bxg7 {[%emt 0:03:12]} Qxg7 {[%emt 0:00:06]} 12. Qe3 {[%emt 0:00:51]} b6 {[%emt 0:03:47]} 13. a4 {[%emt 0:23:18]} a5 {[%emt 0:00:39]} 14. Nd2 {[%emt 0:00:06]} Ba6 {[%emt 0:27:16]} 15. Ne2 {[%emt 0:10:19]} Nf8 {[%emt 0:03:33]} 16. f4 {[%emt 0:02:09]} Ne6 {[%emt 0:03:59]} 17. fxe5 {[%emt 0:15:49]} fxe5 {[%emt 0:00:12]} 18. O-O {[%emt 0:01:31]} O-O-O {[%emt 0:01:14]} 19. Qg3 {[%emt 0:09:05]} Rhf8 {[%emt 0:21:35]} 20. Qg4 {[%emt 0:18:20]} Kd7 {[%emt 0:03:14]} 21. Nf3 {[%emt 0:02:18]} Bc8 {[%emt 0:00:53]} 22. Qg3 {[%emt 0:01:16]} Kd6 {[%emt 0:03:39]} 23. Nd2 {[%emt 0:02:00]} Ba6 {[%emt 0:00:31]} 24. Nf3 {[%emt 0:00:17]} Bc8 {[%emt 0:01:50]} 25. Rae1 {[%emt 0:00:39]} Nf4 {[%emt 0:11:31]} 26. Nd2 {[%emt 0:00:14]} Nxe2+ {[%emt 0:01:54]} 27. Rxe2 {[%emt 0:00:03]} Rxf1+ {[%emt 0:00:47]} 28. Kxf1 {[%emt 0:00:05]} Rf8+ {[%emt 0:00:49]} 29. Kg1 {[%emt 0:00:33]} Be6 {[%emt 0:00:33]} 30. Re3 {[%emt 0:01:46]} Qf6 {[%emt 0:03:08]} 31. Rf3 {[%emt 0:00:17]} Qg7 {[%emt 0:00:01]} 32. Qg5 {[%emt 0:00:37]} h6 {[%emt 0:00:41]} 33. Qg3 {[%emt 0:00:20]} Rxf3 {[%emt 0:00:58]} 34. Nxf3 {[%emt 0:00:33]} Qf6 {[%emt 0:00:29]} 35. c3 {[%emt 0:00:34]} Qf4 {[%emt 0:01:38]} 36. Qxg6 {[%emt 0:00:28]} Qe3+ {[%emt 0:01:50]} 37. Kh1 {[%emt 0:00:20]} Qxd3 {[%emt 0:00:13]} 38. Qxh6 {[%emt 0:00:25]} Qb1+ {[%emt 0:00:54]} 39. Kh2 {[%emt 0:00:06]} Qxe4 {[%emt 0:00:02]} 40. Qf8+ {[%emt 0:00:47]} Kd7 {[%emt 0:00:46]} 41. Qg7+ {[%emt 0:01:01]} Kd6 {[%emt 0:00:24]} 42. Qf8+ {[%emt 0:00:31]} Kd7 {[%emt 0:00:01]} 43. Ng5 {[%emt 0:00:27]} Qf4+ {[%emt 0:01:14]} 44. Qxf4 {[%emt 0:00:08]} exf4 {[%emt 0:00:01]} 45. Nxe6 {[%emt 0:00:55]} Kxe6 {[%emt 0:00:02]} 46. g4 {[%emt 0:00:06]} b5 {[%emt 0:01:26]} 47. h4 {[%emt 0:00:29]} Ke5 {[%emt 0:00:33]} 48. g5 {[%emt 0:00:41]} c4 {[%emt 0:00:30]} 49. g6 {[%emt 0:00:14]} Kf6 {[%emt 0:00:18]} 50. h5 {[%emt 0:00:04]} b4 {[%emt 0:00:41]} 51. Kg2 {[%emt 0:00:06]} c5 {[%emt 0:00:24]} 52. Kf3 {[%emt 0:00:12]} b3 {[%emt 0:00:18]} 53. Kxf4 {[%emt 0:00:06]} Kg7 {[%emt 0:00:09]} 54. Kg5 {[%emt 0:00:04]} Kg8 {[%emt 0:00:10]} 55. h6 {[%emt 0:00:06]} Kf8 {[%emt 0:00:17]} 56. Kf6 {[%emt 0:00:07]} 1-0

[Event "Chinese Championship-B Women 2024"]
[Site "Liaocheng"]
[Date "2024.04.24"]
[Round "6.4"]
[White "Zhou, Shumeng"]
[Black "Zhao, Chenyu"]
[Result "1-0"]
[WhiteElo "1800"]
[BlackElo "1909"]
[PlyCount "75"]
[EventDate "2024.04.24"]
[EventType "swiss"]
[EventCountry "CHN"]
[TimeControl "5400+30"]

1. e4 {[%emt 0:02:29]} c5 {[%emt 0:00:04]} 2. Nf3 {[%emt 0:00:11]} d6 {[%emt 0:00:14]} 3. d4 {[%emt 0:00:17]} cxd4 {[%emt 0:00:11]} 4. Nxd4 {[%emt 0:00:09]} Nf6 {[%emt 0:00:06]} 5. Nc3 {[%emt 0:00:08]} Nc6 {[%emt 0:00:05]} 6. Bg5 {[%emt 0:00:23]} e6 {[%emt 0:00:08]} 7. Qd2 {[%emt 0:00:07]} a6 {[%emt 0:00:06]} 8. O-O-O {[%emt 0:00:11]} Bd7 {[%emt 0:00:06]} 9. f4 {[%emt 0:00:16]} b5 {[%emt 0:03:18]} 10. Nf3 {[%emt 0:04:18]} b4 {[%emt 0:05:12]} 11. Bxf6 {[%emt 0:00:17]} Qxf6 {[%emt 0:04:47]} 12. Ne2 {[%emt 0:05:42]} Qd8 {[%emt 0:00:28]} 13. Ned4 {[%emt 0:03:27]} Qb6 {[%emt 0:03:15]} 14. Kb1 {[%emt 0:03:57]} Be7 {[%emt 0:00:43]} 15. g4 {[%emt 0:03:30]} O-O {[%emt 0:07:29]} 16. g5 {[%emt 0:03:17]} Qc5 {[%emt 0:21:57]} 17. h4 {[%emt 0:05:56]} Rfc8 {[%emt 0:03:28]} 18. Nb3 {[%emt 0:01:40]} Qb6 {[%emt 0:00:33]} 19. h5 {[%emt 0:03:54]} a5 {[%emt 0:00:57]} 20. g6 {[%emt 0:01:02]} a4 {[%emt 0:07:29]} 21. Nc1 {[%emt 0:07:08]} b3 {[%emt 0:01:28]} 22. cxb3 {[%emt 0:02:16]} axb3 {[%emt 0:00:11]} 23. a3 {[%emt 0:00:47]} fxg6 24. hxg6 {[%emt 0:00:02]} h6 {[%emt 0:08:28]} 25. f5 {[%emt 0:02:29]} Na5 {[%emt 0:09:00]} 26. Qd4 {[%emt 0:24:10]} Qc6 {[%emt 0:01:02]} 27. Bd3 {[%emt 0:04:52]} Qb7 {[%emt 0:05:20]} 28. Qe3 {[%emt 0:02:06]} Bf6 {[%emt 0:02:09]} 29. e5 {[%emt 0:05:07]} dxe5 {[%emt 0:00:57]} 30. Nxe5 {[%emt 0:00:33]} Bb5 {[%emt 0:03:41]} 31. Ng4 {[%emt 0:05:55]} Bg5 {[%emt 0:08:52]} 32. Qxe6+ {[%emt 0:00:18]} Kh8 {[%emt 0:00:02]} 33. Bxb5 {[%emt 0:00:49]} Qxb5 {[%emt 0:00:19]} 34. Nxh6 {[%emt 0:02:18]} Rxc1+ {[%emt 0:03:30]} 35. Rxc1 {[%emt 0:00:02]} gxh6 {[%emt 0:00:15]} 36. Rxh6+ {[%emt 0:00:34]} Bxh6 {[%emt 0:00:05]} 37. Qf6+ {[%emt 0:00:07]} Bg7 {[%emt 0:00:05]} 38. Rh1+ {[%emt 0:00:04]} 1-0

[Event "Chinese Championship-B Women 2024"]
[Site "Liaocheng"]
[Date "2024.04.24"]
[Round "6.5"]
[White "Shao, Qiyu"]
[Black "Cui, Wen"]
[Result "1-0"]
[WhiteElo "1764"]
[BlackElo "1825"]
[PlyCount "71"]
[EventDate "2024.04.24"]
[EventType "swiss"]
[EventCountry "CHN"]
[TimeControl "5400+30"]

1. c4 {[%emt 0:00:02]} e5 {[%emt 0:00:08]} 2. Nc3 {[%emt 0:00:11]} Nf6 {[%emt 0:00:11]} 3. g3 {[%emt 0:00:17]} d5 {[%emt 0:00:18]} 4. cxd5 {[%emt 0:00:03]} Nxd5 {[%emt 0:00:09]} 5. Bg2 {[%emt 0:00:05]} Nb6 {[%emt 0:00:10]} 6. Nf3 {[%emt 0:00:28]} Nc6 {[%emt 0:00:15]} 7. d3 {[%emt 0:00:19]} Be7 {[%emt 0:00:29]} 8. O-O {[%emt 0:00:22]} O-O {[%emt 0:00:34]} 9. a4 {[%emt 0:02:14]} a5 {[%emt 0:11:20]} 10. Be3 {[%emt 0:01:28]} Re8 {[%emt 0:02:46]} 11. Rc1 {[%emt 0:08:44]} Bf8 {[%emt 0:03:51]} 12. d4 {[%emt 0:24:19]} Nc4 {[%emt 0:22:49]} 13. Bg5 {[%emt 0:01:26]} f6 {[%emt 0:09:51]} 14. Qb3 {[%emt 0:00:30]} exd4 {[%emt 0:01:19]} 15. Nxd4 {[%emt 0:09:16]} Nxd4 {[%emt 0:05:48]} 16. Qxc4+ {[%emt 0:00:39]} Be6 {[%emt 0:02:37]} 17. Bd5 {[%emt 0:00:07]} fxg5 {[%emt 0:04:17]} 18. Qxd4 {[%emt 0:00:39]} Bxd5 {[%emt 0:01:41]} 19. Qxd5+ {[%emt 0:00:08]} Qxd5 {[%emt 0:00:52]} 20. Nxd5 {[%emt 0:00:04]} Rxe2 {[%emt 0:00:13]} 21. Nxc7 {[%emt 0:00:24]} Rd8 {[%emt 0:11:59]} 22. b3 {[%emt 0:01:30]} Bd6 {[%emt 0:04:01]} 23. Nb5 {[%emt 0:01:33]} Bb4 {[%emt 0:00:14]} 24. Rc7 {[%emt 0:04:31]} b6 {[%emt 0:01:02]} 25. Rb7 {[%emt 0:05:03]} Bc5 {[%emt 0:01:32]} 26. Nc3 {[%emt 0:03:00]} Re6 {[%emt 0:00:09]} 27. Kg2 {[%emt 0:04:43]} h6 {[%emt 0:01:24]} 28. Rd1 {[%emt 0:01:08]} Rf8 {[%emt 0:05:19]} 29. f3 {[%emt 0:03:37]} g4 {[%emt 0:01:16]} 30. fxg4 {[%emt 0:01:45]} Rf2+ {[%emt 0:01:15]} 31. Kh3 {[%emt 0:00:01]} Re3 {[%emt 0:03:41]} 32. Rd8+ {[%emt 0:00:06]} Rf8 {[%emt 0:00:10]} 33. Rdd7 {[%emt 0:00:24]} Rf1 {[%emt 0:02:13]} 34. Rxg7+ {[%emt 0:00:08]} Kf8 {[%emt 0:00:09]} 35. Nd5 {[%emt 0:02:10]} Rxb3 {[%emt 0:00:53]} 36. Rgc7 {[%emt 0:01:13]} 1-0

[Event "Chinese Championship-B Women 2024"]
[Site "Liaocheng"]
[Date "2024.04.24"]
[Round "6.6"]
[White "Yu, Xilei"]
[Black "Hu, Yu A."]
[Result "0-1"]
[WhiteElo "1676"]
[BlackElo "2148"]
[PlyCount "90"]
[EventDate "2024.04.24"]
[EventType "swiss"]
[EventCountry "CHN"]
[TimeControl "5400+30"]

1. d4 {[%emt 0:03:44]} d5 {[%emt 0:01:59]} 2. Nf3 {[%emt 0:00:06]} Nf6 {[%emt 0:00:09]} 3. Bf4 {[%emt 0:00:04]} e6 {[%emt 0:00:56]} 4. e3 {[%emt 0:00:12]} Bd6 {[%emt 0:01:19]} 5. Bxd6 {[%emt 0:00:11]} Qxd6 {[%emt 0:00:07]} 6. c3 {[%emt 0:00:25]} O-O {[%emt 0:00:44]} 7. Bd3 {[%emt 0:00:08]} Nbd7 {[%emt 0:04:45]} 8. Nbd2 {[%emt 0:00:12]} e5 {[%emt 0:02:09]} 9. dxe5 {[%emt 0:00:07]} Nxe5 {[%emt 0:00:05]} 10. Nxe5 {[%emt 0:00:24]} Qxe5 {[%emt 0:00:08]} 11. h3 {[%emt 0:00:29]} c5 {[%emt 0:01:34]} 12. O-O {[%emt 0:00:26]} b6 {[%emt 0:01:36]} 13. Nf3 {[%emt 0:00:51]} Qe7 {[%emt 0:03:50]} 14. Qe2 {[%emt 0:02:04]} Bb7 {[%emt 0:00:37]} 15. Ba6 {[%emt 0:00:19]} Rad8 {[%emt 0:02:42]} 16. Bxb7 {[%emt 0:00:11]} Qxb7 {[%emt 0:00:03]} 17. Rad1 {[%emt 0:00:26]} c4 {[%emt 0:02:51]} 18. Nd4 {[%emt 0:01:05]} b5 {[%emt 0:00:42]} 19. Qf3 {[%emt 0:02:45]} Ne4 {[%emt 0:15:28]} 20. Nf5 {[%emt 0:02:03]} g6 {[%emt 0:04:31]} 21. Ng3 {[%emt 0:02:12]} f5 {[%emt 0:10:35]} 22. Nxe4 {[%emt 1:23:06]} dxe4 {[%emt 0:00:55]} 23. Qf4 {[%emt 0:00:00]} Rd3 {[%emt 0:12:39]} 24. Qe5 {[%emt 0:00:00]} Qd7 {[%emt 0:01:00]} 25. Rxd3 cxd3 {[%emt 0:00:12]} 26. Rd1 {[%emt 0:00:00]} Re8 {[%emt 0:01:00]} 27. Qc5 {[%emt 0:00:00]} Rc8 {[%emt 0:01:08]} 28. Qe5 {[%emt 0:00:00]} a6 {[%emt 0:01:03]} 29. a3 {[%emt 0:00:00]} Rd8 {[%emt 0:00:51]} 30. Rd2 {[%emt 0:00:00]} Qd6 {[%emt 0:00:30]} 31. Qxd6 {[%emt 0:00:00]} Rxd6 {[%emt 0:00:04]} 32. Kf1 {[%emt 0:00:00]} Kf7 {[%emt 0:02:22]} 33. f4 {[%emt 0:00:00]} Ke6 {[%emt 0:00:39]} 34. Ke1 {[%emt 0:00:00]} Kd5 {[%emt 0:03:30]} 35. h4 {[%emt 0:00:00]} Kc4 {[%emt 0:00:27]} 36. Kd1 {[%emt 0:00:00]} Kb3 {[%emt 0:00:09]} 37. Kc1 {[%emt 0:00:00]} a5 {[%emt 0:01:06]} 38. Kb1 {[%emt 0:00:00]} h6 {[%emt 0:01:01]} 39. Ka1 {[%emt 0:00:00]} g5 {[%emt 0:01:36]} 40. hxg5 {[%emt 0:00:00]} hxg5 {[%emt 0:00:06]} 41. fxg5 {[%emt 0:00:00]} f4 {[%emt 0:00:20]} 42. exf4 {[%emt 0:00:00]} e3 {[%emt 0:00:04]} 43. Rd1 {[%emt 0:00:00]} e2 {[%emt 0:00:10]} 44. Re1 {[%emt 0:00:00]} d2 {[%emt 0:00:05]} 45. Rxe2 {[%emt 0:00:00]} d1=Q# {[%emt 0:00:05]} 0-1